[Event "*** Titled Tuesday Blitz"]
[Site "Chess.com"]
[Date "2021.02.09"]
[Round "10"]
[White "Supernotar"]
[Black "Alexander_Zubov"]
[Result "0-1"]
[WhiteElo "2805"]
[BlackElo "2974"]
[TimeControl "180+1"]
[EndTime "11:56:28 PST"]
[Termination "Alexander_Zubov won by resignation"]

1. d4 {[%clk 0:03:00.9]} 1... Nf6 {[%clk 0:02:56.4]} 2. c4 {[%clk 0:03:01]} 2...
g6 {[%clk 0:02:55.7]} 3. Nc3 {[%clk 0:03:00.7]} 3... d5 {[%clk 0:02:55.1]} 4.
cxd5 {[%clk 0:03:00.5]} 4... Nxd5 {[%clk 0:02:55.1]} 5. e4 {[%clk 0:03:00.8]}
5... Nxc3 {[%clk 0:02:55.3]} 6. bxc3 {[%clk 0:03:01.7]} 6... Bg7 {[%clk
0:02:55.8]} 7. Nf3 {[%clk 0:03:00.6]} 7... c5 {[%clk 0:02:55.5]} 8. Be3 {[%clk
0:03:01.5]} 8... Qa5 {[%clk 0:02:54.9]} 9. Qd2 {[%clk 0:03:01.1]} 9... O-O
{[%clk 0:02:54]} 10. Rc1 {[%clk 0:02:59.9]} 10... Rd8 {[%clk 0:02:50.1]} 11. d5
{[%clk 0:02:57.1]} 11... Nc6 {[%clk 0:02:48.2]} 12. Be2 {[%clk 0:02:52.2]} 12...
e6 {[%clk 0:02:40.4]} 13. O-O {[%clk 0:02:51.3]} 13... exd5 {[%clk 0:02:39.8]}
14. exd5 {[%clk 0:02:52.2]} 14... Ne7 {[%clk 0:02:39.2]} 15. c4 {[%clk
0:02:47.9]} 15... Qxd2 {[%clk 0:02:39.1]} 16. Nxd2 {[%clk 0:02:46.6]} 16... b6
{[%clk 0:02:39.5]} 17. Bg5 {[%clk 0:02:32.5]} 17... f6 {[%clk 0:02:34.2]} 18.
Bf4 {[%clk 0:02:32.5]} 18... Nf5 {[%clk 0:02:16.1]} 19. Rfe1 {[%clk 0:02:32.6]}
19... Bd7 {[%clk 0:02:09]} 20. Bd3 {[%clk 0:02:28.8]} 20... Re8 {[%clk
0:01:58.7]} 21. Kf1 {[%clk 0:02:23.9]} 21... g5 {[%clk 0:01:54.7]} 22. Bc7
{[%clk 0:02:19.2]} 22... Bf8 {[%clk 0:01:46.9]} 23. Rxe8 {[%clk 0:02:14.2]}
23... Rxe8 {[%clk 0:01:46.2]} 24. Re1 {[%clk 0:02:10.2]} 24... Rc8 {[%clk
0:01:43.4]} 25. Bg3 {[%clk 0:02:06.3]} 25... h5 {[%clk 0:01:31.2]} 26. Ne4
{[%clk 0:01:58.3]} 26... Kf7 {[%clk 0:01:23.8]} 27. h3 {[%clk 0:01:58.2]} 27...
a6 {[%clk 0:00:57.4]} 28. Bh2 {[%clk 0:01:55.1]} 28... b5 {[%clk 0:00:55.6]} 29.
cxb5 {[%clk 0:01:47.5]} 29... axb5 {[%clk 0:00:52.2]} 30. Be2 {[%clk 0:01:26.6]}
30... Kg6 {[%clk 0:00:46]} 31. Bxh5+ {[%clk 0:01:21.2]} 31... Kg7 {[%clk
0:00:37.9]} 32. Bg4 {[%clk 0:01:14.2]} 32... c4 {[%clk 0:00:36.5]} 33. Rc1
{[%clk 0:01:09.8]} 33... Ra8 {[%clk 0:00:25]} 34. d6 {[%clk 0:01:02.6]} 34...
Bc8 {[%clk 0:00:15.5]} 35. Rd1 {[%clk 0:00:50]} 35... Ra7 {[%clk 0:00:15.3]} 36.
Bxf5 {[%clk 0:00:37.6]} 36... Bxf5 {[%clk 0:00:14.6]} 37. Nc5 {[%clk 0:00:32.6]}
37... c3 {[%clk 0:00:14.9]} 38. g4 {[%clk 0:00:29.7]} 38... c2 {[%clk 0:00:10]}
39. Rc1 {[%clk 0:00:27.8]} 39... Bg6 {[%clk 0:00:10.6]} 40. Ke2 {[%clk
0:00:25.8]} 40... Kf7 {[%clk 0:00:10.4]} 41. d7 {[%clk 0:00:23.8]} 41... Be7
{[%clk 0:00:08.8]} 42. f4 {[%clk 0:00:21.5]} 42... gxf4 {[%clk 0:00:08.5]} 43.
Bxf4 {[%clk 0:00:22.4]} 43... Rxa2 {[%clk 0:00:02.5]} 44. h4 {[%clk 0:00:18.6]}
44... b4 {[%clk 0:00:01.5]} 45. h5 {[%clk 0:00:18.2]} 45... Bh7 {[%clk
0:00:02.1]} 46. Kd2 {[%clk 0:00:14.2]} 46... Ra8 {[%clk 0:00:02.7]} 47. Bc7
{[%clk 0:00:11.1]} 47... Bd8 {[%clk 0:00:01.7]} 48. Bd6 {[%clk 0:00:10.6]} 48...
Be7 {[%clk 0:00:02.1]} 49. Bc7 {[%clk 0:00:11.2]} 49... Bd8 {[%clk 0:00:02.6]}
50. Bd6 {[%clk 0:00:11.8]} 50... Ra7 {[%clk 0:00:03.3]} 51. g5 {[%clk
0:00:06.1]} 51... fxg5 {[%clk 0:00:03.3]} 52. h6 {[%clk 0:00:06.2]} 52... Kg6
{[%clk 0:00:03.3]} 53. Rf1 {[%clk 0:00:05.7]} 53... Kxh6 {[%clk 0:00:03.4]} 54.
Rf8 {[%clk 0:00:05.9]} 54... Ra1 {[%clk 0:00:03.1]} 55. Nb3 {[%clk 0:00:04.9]}
55... Rd1+ {[%clk 0:00:03.1]} 56. Ke2 {[%clk 0:00:05.4]} 56... Rxd6 {[%clk
0:00:02.4]} 57. Rxd8 {[%clk 0:00:05.1]} 57... Rd1 {[%clk 0:00:03.1]} 58. Rc8
{[%clk 0:00:04.5]} 58... Rxd7 {[%clk 0:00:02.2]} 59. Rc6+ {[%clk 0:00:04.1]}
59... Kh5 {[%clk 0:00:02.6]} 60. Rc4 {[%clk 0:00:04.4]} 60... Bd3+ {[%clk
0:00:03]} 0-1

[Event "*** Titled Tuesday Blitz"]
[Site "Chess.com"]
[Date "2021.02.09"]
[Round "10"]
[White "DinaBelenkaya"]
[Black "Yaryi_sergey"]
[Result "0-1"]
[WhiteElo "2347"]
[BlackElo "2481"]
[TimeControl "180+1"]
[EndTime "11:56:30 PST"]
[Termination "Yaryi_sergey won on time"]

1. e4 {[%clk 0:03:00.9]} 1... c6 {[%clk 0:02:59]} 2. d3 {[%clk 0:02:59]} 2... g6
{[%clk 0:02:57.4]} 3. Nd2 {[%clk 0:02:57.4]} 3... Bg7 {[%clk 0:02:58.3]} 4. g3
{[%clk 0:02:56.7]} 4... Na6 {[%clk 0:02:56.7]} 5. Bg2 {[%clk 0:02:56.6]} 5...
Nc7 {[%clk 0:02:57.3]} 6. f4 {[%clk 0:02:57.1]} 6... d5 {[%clk 0:02:57.1]} 7. e5
{[%clk 0:02:56.6]} 7... h5 {[%clk 0:02:56.6]} 8. Ngf3 {[%clk 0:02:55.7]} 8...
Nh6 {[%clk 0:02:56.3]} 9. Nb3 {[%clk 0:02:49.9]} 9... Ne6 {[%clk 0:02:55.2]} 10.
Be3 {[%clk 0:02:39.8]} 10... Ng4 {[%clk 0:02:50.4]} 11. Bg1 {[%clk 0:02:39.5]}
11... a5 {[%clk 0:02:48.4]} 12. Nbd4 {[%clk 0:02:21.5]} 12... b6 {[%clk
0:02:43.6]} 13. Nxe6 {[%clk 0:02:20.7]} 13... Bxe6 {[%clk 0:02:41.9]} 14. Ng5
{[%clk 0:02:17.3]} 14... Bf5 {[%clk 0:02:37.5]} 15. h3 {[%clk 0:02:14.6]} 15...
Nh6 {[%clk 0:02:35.4]} 16. Qe2 {[%clk 0:02:14.1]} 16... O-O {[%clk 0:02:27.6]}
17. Bf2 {[%clk 0:01:57.1]} 17... f6 {[%clk 0:02:27.6]} 18. Nf3 {[%clk
0:01:54.2]} 18... Nf7 {[%clk 0:02:25.8]} 19. e6 {[%clk 0:01:51.9]} 19... Nh6
{[%clk 0:02:24.3]} 20. Nd4 {[%clk 0:01:51.8]} 20... c5 {[%clk 0:02:22.4]} 21.
Nb5 {[%clk 0:01:46.6]} 21... d4 {[%clk 0:02:14.3]} 22. Bxa8 {[%clk 0:01:40.5]}
22... Qxa8 {[%clk 0:02:13]} 23. O-O-O {[%clk 0:01:35.8]} 23... Qd5 {[%clk
0:02:11.7]} 24. c4 {[%clk 0:01:07.2]} 24... dxc3 {[%clk 0:02:09.1]} 25. Nxc3
{[%clk 0:01:06]} 25... Qxe6 {[%clk 0:02:06.6]} 26. Qxe6+ {[%clk 0:01:00.2]}
26... Bxe6 {[%clk 0:02:06]} 27. d4 {[%clk 0:00:59.8]} 27... cxd4 {[%clk
0:01:56.4]} 28. Bxd4 {[%clk 0:01:00.7]} 28... Nf5 {[%clk 0:01:56.4]} 29. Bxb6
{[%clk 0:01:00.2]} 29... Nxg3 {[%clk 0:01:56.2]} 30. Rhe1 {[%clk 0:00:59]} 30...
Kf7 {[%clk 0:01:55.6]} 31. Rd3 {[%clk 0:00:51.7]} 31... h4 {[%clk 0:01:53.9]}
32. Nd5 {[%clk 0:00:49.5]} 32... Bh6 {[%clk 0:01:44.9]} 33. Bxa5 {[%clk
0:00:20.5]} 33... Rc8+ {[%clk 0:01:36.9]} 34. Bc3 {[%clk 0:00:20.6]} 34... Bxd5
{[%clk 0:01:32]} 35. Rxd5 {[%clk 0:00:21.5]} 35... Bxf4+ {[%clk 0:01:31.9]} 36.
Kc2 {[%clk 0:00:21.9]} 36... Nf5 {[%clk 0:01:31.2]} 37. Rd3 {[%clk 0:00:17.3]}
37... e5 {[%clk 0:01:29]} 38. a4 {[%clk 0:00:16.8]} 38... g5 {[%clk 0:01:27.9]}
39. a5 {[%clk 0:00:16.7]} 39... Nd4+ {[%clk 0:01:28]} 40. Kb1 {[%clk 0:00:17]}
40... Nb5 {[%clk 0:01:26.2]} 41. Bb4 {[%clk 0:00:09.6]} 41... Rc4 {[%clk
0:01:24.9]} 42. Rd7+ {[%clk 0:00:07.2]} 42... Ke6 {[%clk 0:01:24.1]} 43. Bd2
{[%clk 0:00:06.6]} 43... e4 {[%clk 0:01:20]} 44. Rd8 {[%clk 0:00:04.8]} 44...
Bc7 {[%clk 0:01:12]} 45. Re8+ {[%clk 0:00:04.4]} 45... Kf5 {[%clk 0:01:11.5]}
46. Rc8 {[%clk 0:00:04.8]} 46... Nd6 {[%clk 0:01:10.1]} 47. Rf8 {[%clk
0:00:02.9]} 47... Ke6 {[%clk 0:01:07.8]} 48. Rf1 {[%clk 0:00:03.1]} 48... f5
{[%clk 0:01:08]} 49. Rg8 {[%clk 0:00:02.5]} 49... e3 {[%clk 0:01:04.6]} 50. Bxe3
{[%clk 0:00:02.3]} 50... g4 {[%clk 0:01:05]} 51. Bg5 {[%clk 0:00:02.5]} 51...
gxh3 {[%clk 0:01:04.5]} 52. Rg6+ {[%clk 0:00:02.5]} 52... Kd5 {[%clk 0:01:04]}
53. Rf6 {[%clk 0:00:02.5]} 53... Bxa5 {[%clk 0:01:01.6]} 54. Rd1+ {[%clk
0:00:02.1]} 54... Ke4 {[%clk 0:00:59.9]} 55. Rfxd6 {[%clk 0:00:03]} 55... h2
{[%clk 0:00:59.8]} 56. Re6+ {[%clk 0:00:03.1]} 56... Kf3 {[%clk 0:00:59.3]} 57.
Re3+ {[%clk 0:00:04]} 57... Kg4 {[%clk 0:00:59.1]} 58. Bh6 {[%clk 0:00:04]}
58... Bc7 {[%clk 0:00:57.9]} 59. Re2 {[%clk 0:00:03.9]} 59... Bg3 {[%clk
0:00:57.4]} 60. Be3 {[%clk 0:00:02.4]} 60... f4 {[%clk 0:00:57.1]} 61. Bf2
{[%clk 0:00:02.1]} 61... f3 {[%clk 0:00:57.4]} 62. Red2 {[%clk 0:00:02.3]} 62...
Bf4 {[%clk 0:00:54.9]} 63. b3 {[%clk 0:00:02.8]} 63... Rb4 {[%clk 0:00:54.1]}
64. Rd3 {[%clk 0:00:02.6]} 64... Bg3 {[%clk 0:00:53.2]} 65. Bc5 {[%clk
0:00:02.6]} 65... Re4 {[%clk 0:00:50.8]} 66. b4 {[%clk 0:00:03.5]} 66... Re2
{[%clk 0:00:50.6]} 67. b5 {[%clk 0:00:03.6]} 67... f2 {[%clk 0:00:50.8]} 68.
Bxf2 {[%clk 0:00:02.6]} 68... Bxf2 {[%clk 0:00:50.3]} 69. Rb3 {[%clk 0:00:01.8]}
69... Bg1 {[%clk 0:00:47.3]} 70. b6 {[%clk 0:00:02.2]} 70... h1=Q {[%clk
0:00:46.7]} 71. Rb4+ {[%clk 0:00:02]} 71... Kh3 {[%clk 0:00:44.4]} 72. b7 {[%clk
0:00:02.9]} 72... Re8 {[%clk 0:00:39.1]} 73. Rb3+ {[%clk 0:00:01.7]} 73... Kg4
{[%clk 0:00:38.2]} 74. Rb4+ {[%clk 0:00:02.1]} 74... Kh5 {[%clk 0:00:38.2]} 75.
Rb5+ {[%clk 0:00:02.6]} 75... Kg6 {[%clk 0:00:38.5]} 0-1

[Event "*** Titled Tuesday Blitz"]
[Site "Chess.com"]
[Date "2021.02.09"]
[Round "10"]
[White "Chandradi"]
[Black "The_Machine04"]
[Result "0-1"]
[WhiteElo "2325"]
[BlackElo "2462"]
[TimeControl "180+1"]
[EndTime "11:56:31 PST"]
[Termination "The_Machine04 won by resignation"]

1. c4 {[%clk 0:03:00.9]} 1... e6 {[%clk 0:02:58.9]} 2. Nf3 {[%clk 0:03:00.1]}
2... Nf6 {[%clk 0:02:58.4]} 3. b3 {[%clk 0:02:58.3]} 3... d5 {[%clk 0:02:58.3]}
4. e3 {[%clk 0:02:58.3]} 4... Be7 {[%clk 0:02:58.1]} 5. Bb2 {[%clk 0:02:58.3]}
5... O-O {[%clk 0:02:58]} 6. Be2 {[%clk 0:02:58]} 6... c5 {[%clk 0:02:58.1]} 7.
O-O {[%clk 0:02:52.5]} 7... Nc6 {[%clk 0:02:54.9]} 8. cxd5 {[%clk 0:02:51.7]}
8... exd5 {[%clk 0:02:54.4]} 9. d4 {[%clk 0:02:51.6]} 9... cxd4 {[%clk
0:02:51.4]} 10. Nxd4 {[%clk 0:02:51.2]} 10... Be6 {[%clk 0:02:49]} 11. Nxe6
{[%clk 0:02:50.9]} 11... fxe6 {[%clk 0:02:48.3]} 12. Nc3 {[%clk 0:02:50.1]}
12... Rc8 {[%clk 0:02:47.7]} 13. Nb5 {[%clk 0:02:48.5]} 13... a6 {[%clk
0:02:46.5]} 14. Nd4 {[%clk 0:02:48.6]} 14... Nxd4 {[%clk 0:02:46.6]} 15. Qxd4
{[%clk 0:02:47]} 15... Bc5 {[%clk 0:02:44]} 16. Qd3 {[%clk 0:02:44.1]} 16... Qe8
{[%clk 0:02:39.3]} 17. h3 {[%clk 0:02:41]} 17... Be7 {[%clk 0:02:35.3]} 18. Rac1
{[%clk 0:02:40.4]} 18... Qg6 {[%clk 0:02:32.1]} 19. Rxc8 {[%clk 0:02:19.7]}
19... Rxc8 {[%clk 0:02:30.8]} 20. Qxg6 {[%clk 0:02:15.3]} 20... hxg6 {[%clk
0:02:31.1]} 21. Rc1 {[%clk 0:02:16.2]} 21... Rxc1+ {[%clk 0:02:29.5]} 22. Bxc1
{[%clk 0:02:17.1]} 22... Kf7 {[%clk 0:02:29.6]} 23. f3 {[%clk 0:02:15.8]} 23...
Nd7 {[%clk 0:02:27]} 24. Bd3 {[%clk 0:02:12.1]} 24... e5 {[%clk 0:02:25.1]} 25.
Kf2 {[%clk 0:02:11.3]} 25... Nc5 {[%clk 0:02:22.3]} 26. Bc2 {[%clk 0:02:10.3]}
26... b5 {[%clk 0:02:20.6]} 27. b4 {[%clk 0:02:06.6]} 27... Nd7 {[%clk
0:02:19.1]} 28. Bb3 {[%clk 0:02:03.2]} 28... Ke6 {[%clk 0:02:17.7]} 29. e4
{[%clk 0:02:02.3]} 29... Nb6 {[%clk 0:02:14.9]} 30. exd5+ {[%clk 0:02:02.5]}
30... Nxd5 {[%clk 0:02:14]} 31. a3 {[%clk 0:02:00.6]} 31... Kd6 {[%clk
0:02:11.1]} 32. g3 {[%clk 0:01:50.5]} 32... Bd8 {[%clk 0:02:03.2]} 33. h4 {[%clk
0:01:49.4]} 33... Bb6+ {[%clk 0:02:02.8]} 34. Ke2 {[%clk 0:01:49.3]} 34... Ne7
{[%clk 0:01:51.6]} 35. g4 {[%clk 0:01:35.7]} 35... Nc6 {[%clk 0:01:49.7]} 36.
Bf7 {[%clk 0:01:17.3]} 36... Bd8 {[%clk 0:01:47.9]} 37. g5 {[%clk 0:01:11.3]}
37... Nd4+ {[%clk 0:01:44.4]} 38. Kf2 {[%clk 0:01:06.6]} 38... Nf5 {[%clk
0:01:31.5]} 39. Bxg6 {[%clk 0:01:01.1]} 39... Nxh4 {[%clk 0:01:30.9]} 40. Be4
{[%clk 0:01:00.9]} 40... g6 {[%clk 0:01:24.9]} 41. Be3 {[%clk 0:00:45.4]} 41...
Nf5 {[%clk 0:01:23.3]} 42. Bc5+ {[%clk 0:00:45.6]} 42... Ke6 {[%clk 0:01:15.1]}
43. Bb7 {[%clk 0:00:43.8]} 43... Bxg5 {[%clk 0:01:14.6]} 44. Bxa6 {[%clk
0:00:42.9]} 44... Bc1 {[%clk 0:01:14.6]} 45. Bxb5 {[%clk 0:00:40]} 45... Bxa3
{[%clk 0:01:14.4]} 46. Bc4+ {[%clk 0:00:40.8]} 46... Kf6 {[%clk 0:01:13.4]} 47.
Ke2 {[%clk 0:00:26.5]} 47... Nd4+ {[%clk 0:01:08.6]} 48. Kd3 {[%clk 0:00:21]}
48... Nxf3 {[%clk 0:01:05.5]} 49. Kc3 {[%clk 0:00:21.6]} 49... e4 {[%clk
0:00:56]} 50. Kb3 {[%clk 0:00:21]} 50... Bc1 {[%clk 0:00:55.7]} 51. b5 {[%clk
0:00:20.8]} 51... Bf4 {[%clk 0:00:55]} 52. b6 {[%clk 0:00:21.1]} 52... Nd2+
{[%clk 0:00:49.6]} 53. Kc3 {[%clk 0:00:20.4]} 53... Nxc4 {[%clk 0:00:49.2]} 54.
Kxc4 {[%clk 0:00:21.3]} 54... Kf5 {[%clk 0:00:48.6]} 55. Kd5 {[%clk 0:00:20]}
55... e3 {[%clk 0:00:44.9]} 56. b7 {[%clk 0:00:14.3]} 56... e2 {[%clk
0:00:44.8]} 57. Bf2 {[%clk 0:00:14.4]} 57... Kg4 {[%clk 0:00:38.4]} 58. Kd4
{[%clk 0:00:11.1]} 58... Kf3 {[%clk 0:00:37.8]} 59. Be1 {[%clk 0:00:11.4]} 59...
g5 {[%clk 0:00:36.5]} 60. Kd3 {[%clk 0:00:11.8]} 60... g4 {[%clk 0:00:36.1]} 61.
Bd2 {[%clk 0:00:08.5]} 61... Bb8 {[%clk 0:00:34.1]} 62. Be1 {[%clk 0:00:06.2]}
62... g3 {[%clk 0:00:34.1]} 63. Bxg3 {[%clk 0:00:04.5]} 63... Bxg3 {[%clk
0:00:34.9]} 64. b8=Q {[%clk 0:00:03.2]} 64... Bxb8 {[%clk 0:00:34.3]} 0-1

[Event "*** Titled Tuesday Blitz"]
[Site "Chess.com"]
[Date "2021.02.09"]
[Round "10"]
[White "PowerThinking2650"]
[Black "Darius321"]
[Result "1-0"]
[WhiteElo "2409"]
[BlackElo "2283"]
[TimeControl "180+1"]
[EndTime "11:56:31 PST"]
[Termination "PowerThinking2650 won by resignation"]

1. e4 {[%clk 0:03:00.9]} 1... c5 {[%clk 0:02:59]} 2. Nf3 {[%clk 0:03:00.6]} 2...
g6 {[%clk 0:02:59.3]} 3. d4 {[%clk 0:03:01]} 3... cxd4 {[%clk 0:03:00.2]} 4.
Nxd4 {[%clk 0:03:01.7]} 4... Bg7 {[%clk 0:03:00.6]} 5. c4 {[%clk 0:03:01.7]}
5... Nc6 {[%clk 0:03:01]} 6. Be3 {[%clk 0:03:01.6]} 6... Nf6 {[%clk 0:03:01.2]}
7. Nc3 {[%clk 0:03:02.3]} 7... Qa5 {[%clk 0:03:00.7]} 8. Nb3 {[%clk 0:03:00.1]}
8... Qd8 {[%clk 0:02:57.4]} 9. Be2 {[%clk 0:02:58.5]} 9... O-O {[%clk
0:02:57.3]} 10. O-O {[%clk 0:02:58.3]} 10... d6 {[%clk 0:02:57.5]} 11. Nd4
{[%clk 0:02:54.8]} 11... Nxd4 {[%clk 0:02:55.6]} 12. Bxd4 {[%clk 0:02:54.1]}
12... Be6 {[%clk 0:02:55.5]} 13. f4 {[%clk 0:02:51.5]} 13... a6 {[%clk
0:02:31.3]} 14. f5 {[%clk 0:02:50.7]} 14... Bd7 {[%clk 0:02:23.9]} 15. Qd2
{[%clk 0:02:44.5]} 15... Rc8 {[%clk 0:02:19.7]} 16. g4 {[%clk 0:02:32.5]} 16...
Bc6 {[%clk 0:02:19.2]} 17. g5 {[%clk 0:02:10.2]} 17... Nd7 {[%clk 0:01:54.8]}
18. fxg6 {[%clk 0:01:56.4]} 18... hxg6 {[%clk 0:01:43.6]} 19. Bg4 {[%clk
0:01:56.1]} 19... e6 {[%clk 0:01:21.8]} 20. Bxg7 {[%clk 0:01:24.5]} 20... Kxg7
{[%clk 0:01:22.7]} 21. Rf2 {[%clk 0:01:14.3]} 21... Ne5 {[%clk 0:01:17.5]} 22.
Be2 {[%clk 0:01:13.9]} 22... Rh8 {[%clk 0:01:13.2]} 23. Raf1 {[%clk 0:01:12.9]}
23... Rh4 {[%clk 0:01:06.3]} 24. Rf6 {[%clk 0:01:08]} 24... Qb6+ {[%clk
0:01:01.2]} 25. R1f2 {[%clk 0:01:00.1]} 25... Rch8 {[%clk 0:01:00.6]} 26. Qxd6
{[%clk 0:00:54.3]} 26... Rxh2 {[%clk 0:00:33.7]} 27. Qxe5 {[%clk 0:00:50.5]}
27... Rh1+ {[%clk 0:00:25.9]} 28. Kg2 {[%clk 0:00:50.8]} 28... R8h2+ {[%clk
0:00:17.9]} 29. Qxh2 {[%clk 0:00:50.6]} 29... Rxh2+ {[%clk 0:00:17.5]} 30. Kxh2
{[%clk 0:00:51.5]} 30... Be8 {[%clk 0:00:17.6]} 31. Bg4 {[%clk 0:00:43.9]} 31...
Qc5 {[%clk 0:00:15.6]} 32. Nd5 {[%clk 0:00:19.9]} 32... exd5 {[%clk 0:00:13.6]}
33. cxd5 {[%clk 0:00:20.2]} 33... Qd4 {[%clk 0:00:12.8]} 34. d6 {[%clk 0:00:16]}
34... Qe5+ {[%clk 0:00:12.2]} 35. Kh3 {[%clk 0:00:16.3]} 35... Qxg5 {[%clk
0:00:10.7]} 36. d7 {[%clk 0:00:15.8]} 36... Bxd7 {[%clk 0:00:04.4]} 37. Rxf7+
{[%clk 0:00:15.6]} 37... Kh6 {[%clk 0:00:04.6]} 38. Rxd7 {[%clk 0:00:13.8]}
38... Qe3+ {[%clk 0:00:04.3]} 39. Rf3 {[%clk 0:00:13.7]} 39... Qxe4 {[%clk
0:00:02.6]} 40. Rdd3 {[%clk 0:00:11.8]} 40... Qe5 {[%clk 0:00:02.1]} 41. Rf2
{[%clk 0:00:10.5]} 41... Qe4 {[%clk 0:00:01.8]} 42. Rg3 {[%clk 0:00:09.9]} 42...
Qe5 {[%clk 0:00:01.8]} 43. Kg2 {[%clk 0:00:09.8]} 43... Qe4+ {[%clk 0:00:02]}
44. Bf3 {[%clk 0:00:10.3]} 44... Qe5 {[%clk 0:00:01.9]} 45. Bxb7 {[%clk
0:00:10.1]} 45... Qe6 {[%clk 0:00:01.7]} 46. Bf3 {[%clk 0:00:10]} 46... Qe5
{[%clk 0:00:01.9]} 47. Re2 {[%clk 0:00:10.6]} 47... Qf4 {[%clk 0:00:01.9]} 48.
Rg4 {[%clk 0:00:11]} 48... Qf5 {[%clk 0:00:02.1]} 49. Ree4 {[%clk 0:00:10.3]}
49... Qf6 {[%clk 0:00:01.9]} 50. Be2 {[%clk 0:00:10.4]} 50... Qxb2 {[%clk
0:00:01.8]} 51. Rh4+ {[%clk 0:00:09.6]} 51... Kg5 {[%clk 0:00:01.6]} 52. Reg4+
{[%clk 0:00:09.5]} 52... Kf6 {[%clk 0:00:02.5]} 53. Rf4+ {[%clk 0:00:09.7]}
53... Kg7 {[%clk 0:00:02.7]} 54. Re4 {[%clk 0:00:10]} 54... Qxa2 {[%clk
0:00:02.9]} 55. Rhg4 {[%clk 0:00:10]} 55... Kf6 {[%clk 0:00:02.9]} 56. Rgf4+
{[%clk 0:00:09.9]} 56... Kg7 {[%clk 0:00:03.1]} 57. Rf2 {[%clk 0:00:10.6]} 57...
Qd5 {[%clk 0:00:02.5]} 58. Bf3 {[%clk 0:00:10.9]} 58... Qg5+ {[%clk 0:00:02.5]}
59. Rg4 {[%clk 0:00:10.3]} 59... Qe5 {[%clk 0:00:02.6]} 60. Be4 {[%clk
0:00:10.2]} 60... Qd6 {[%clk 0:00:01.8]} 61. Rxg6+ {[%clk 0:00:10]} 61... Qxg6+
{[%clk 0:00:02.7]} 62. Bxg6 {[%clk 0:00:10.4]} 62... Kxg6 {[%clk 0:00:03.6]} 63.
Kf3 {[%clk 0:00:10.9]} 63... Kf5 {[%clk 0:00:03.8]} 64. Ra2 {[%clk 0:00:11.8]}
64... Ke5 {[%clk 0:00:04.4]} 65. Rxa6 {[%clk 0:00:12.3]} 1-0